[Event "1st Lasker Memorial GM 2019"]
[Site "Anogia"]
[Date "2019.09.19"]
[Round "9.3"]
[White "Beerdsen, Thomas"]
[Black "Alexakis, Georgios"]
[Result "1-0"]
[ECO "D42"]
[WhiteElo "2482"]
[BlackElo "2175"]
[Annotator "ChessBase"]
[PlyCount "47"]
[EventDate "2019.09.11"]
[EventType "tourn"]
[EventCountry "GRE"]
[SourceTitle "playchess.com"]
[Source "ChessBase"]
[SourceQuality "1"]
[TimeControl "40/5400+30:1800+30"]

1. e4 {[%emt 0:03:59]} c5 {[%emt 0:00:00]} 2. Nf3 {[%emt 0:00:05]} Nc6 {[%emt 0:00:00]} 3. c3 {[%emt 0:00:05]} Nf6 {[%emt 0:00:03]} 4. e5 {[%emt 0:00:05]} Nd5 {[%emt 0:00:07]} 5. d4 {[%emt 0:00:05]} cxd4 {[%emt 0:00:18]} 6. cxd4 {[%emt 0:00:06]} d6 {[%emt 0:01:17]} 7. exd6 {[%emt 0:00:54]} e6 {[%emt 0:01:26]} 8. Nc3 {[%emt 0:00:12]} Bxd6 {[%emt 0:01:24]} 9. Bd3 {[%emt 0:01:42]} Be7 {[%emt 0:02:34]} 10. O-O {[%emt 0:01:39]} O-O {[%emt 0:00:23]} 11. Re1 {[%emt 0:10:09]} Bf6 {[%emt 0:03:42]} 12. Bb1 {[%emt 0:11:29]} Qb6 {[%emt 0:06:05]} 13. Re4 {[%emt 0:10:55]} Rd8 {[%emt 0:05:59]} 14. Bg5 {[%emt 0:11:11]} Bxg5 {[%emt 0:08:38]} 15. Nxg5 {[%emt 0:00:54]} h6 {[%emt 0:04:45]} 16. Nxf7 {[%emt 0:04:55]} Kxf7 {[%emt 0:03:17]} 17. Qh5+ {[%emt 0:02:20]} Ke7 {[%emt 0:24:28]} 18. Nxd5+ {[%emt 0:12:57]} Rxd5 {[%emt 0:00:06]} 19. Qxd5 {[%emt 0:00:03]} Qxb2 {[%emt 0:00:05]} 20. Qc5+ {[%emt 0:00:05]} Kd7 {[%emt 0:01:27]} 21. d5 {[%emt 0:02:29]} Nd8 {[%emt 0:06:39]} 22. Re1 {[%emt 0:02:10]} Qxa1 {[%emt 0:03:07]} 23. dxe6+ {[%emt 0:00:04]} Nxe6 {[%emt 0:00:10]} 24. Rd1+ {[%emt 0:00:05]} 1-0